[Event "Slovakia Open 2022"]
[Site "Bratislava"]
[Date "2022.09.30"]
[Round "2.18"]
[White "Hasala, Richard"]
[Black "Kijac, Miroslav"]
[Result "0-1"]
[ECO "C05"]
[WhiteElo "1537"]
[BlackElo "2078"]
[Annotator "TA"]
[PlyCount "66"]
[EventDate "2022.09.30"]
[EventCountry "SVK"]
[SourceTitle "playchess.com"]
[Source "ChessBase"]
[SourceQuality "1"]
[TimeControl "2700+10"]

{[%evp 10,66,19,18,35,15,17,20,14,14,14,10,22,1,27,19,22,7,0,-21,-25,-29,19,24,27,0,24,0,7,0,34,-65,0,-31,0,0,0,0,0,0,0,0,64,49,48,0,13,-44,-33,-41,39,38,50,-319,-313,-484,-499,-1034,-1024]} 1. e4 {[%emt 0:00:07][%cal Be2e4,Be4e5][%mdl 32]} e6 {[%emt 0:00:03]} 2. d4 {[%emt 0:00:04]} d5 {[%emt 0:00:02]} 3. Nd2 {[%emt 0:00:05]} Nf6 {[%emt 0:00:06]} 4. e5 {[%emt 0:00:05]} Nfd7 {[%emt 0:00:01]} 5. f4 {[%emt 0:00:07]} c5 {[%emt 0:00:02]} 6. c3 {[%emt 0:00:05]} Be7 {[%emt 0:00:02] C05: French Tarrasch: 3...Nf6 4 e5 Nfd7, 5 f4 and 5 Bd3 sidelines.} 7. Ngf3 {[%emt 0:00:09]} b6 {[%emt 0:00:05]} 8. Bd3 {[%emt 0:00:12]} Ba6 {[%emt 0:00:02] The position is equal.} 9. Bxa6 {[%emt 0:00:23]} Nxa6 {[%emt 0:00:02]} 10. O-O {[%emt 0:00:21]} O-O {[%emt 0:00:12] [#]} 11. Re1 $146 {[%emt 0:00:29]} ({Predecessor:} 11. Qe2 Nc7 12. b3 b5 13. g4 f5 14. Ne1 b4 15. cxb4 cxb4 16. Bb2 Qb8 17. gxf5 Rxf5 {1-0 (42) Kyc,J (2221)-Hemmerling,J (1939) Poznan 2016}) 11... Rc8 {[%emt 0:03:42]} 12. Qe2 {[%emt 0:00:44]} Nab8 {[%emt 0:00:25]} 13. f5 {[%emt 0:03:05]} Nc6 {[%emt 0:00:01]} 14. a3 {[%emt 0:03:56]} cxd4 {[%emt 0:00:48]} 15. cxd4 {[%emt 0:00:09]} Na5 {[%emt 0:03:19]} (15... exf5 {is more appropriate.} 16. Nf1 Re8) 16. b4 {[%emt 0:00:41]} Nc4 {[%emt 0:00:20]} 17. Nxc4 {[%emt 0:00:11]} Rxc4 {[%emt 0:00:11]} 18. g4 {[%emt 0:00:50]} Qc7 {[%emt 0:01:35]} 19. g5 {[%emt 0:01:18]} Rc2 {[%emt 0:01:00]} 20. Qe3 {[%emt 0:01:37]} ({White should try} 20. Bd2 $1 $14) 20... Rc8 {[%emt 0:03:32] Black has more active pieces.} (20... exf5 $15 21. Bd2 b5) 21. Bd2 {[%emt 0:00:52]} b5 {[%emt 0:01:19]} 22. f6 {[%emt 0:01:32] [#] Black must now prevent Rac1.} Bf8 {[%emt 0:00:21]} 23. Qd3 {[%emt 0:02:51]} Qc4 {[%emt 0:01:39]} 24. Qe3 {[%emt 0:00:32]} Qc6 {[%emt 0:02:14]} 25. Rec1 {[%emt 0:01:30]} Qb7 {[%emt 0:02:18]} (25... Nb6 $11) 26. Rxc2 {[%emt 0:00:26]} Rxc2 {[%emt 0:00:01][%cal Bc8c2,Bc2b2,Bb2b3][%mdl 32]} 27. Qd3 {[%emt 0:00:09]} (27. fxg7 $1 $14 {might be stronger.} Bxg7 28. Rf1) 27... Qc6 {[%emt 0:00:18]} 28. h4 {[%emt 0:02:05]} (28. fxg7 $11 Bxg7 29. h4) 28... Qc4 $36 {[%emt 0:04:04][%mdl 2048] Black has some pressure.} 29. Qe3 {[%emt 0:00:11]} Nb6 {[%emt 0:00:17]} (29... g6 $15) 30. Ne1 {[%emt 0:05:57]} Rb2 {[%emt 0:00:56]} 31. Qf4 $2 {[%emt 0:18:27][%mdl 8192] [#]} ({Reject} 31. Rc1 Qb3 $15) (31. fxg7 $1 $14 {was the only good move.} Bxg7 32. Rc1) 31... Qe2 $19 {[%emt 0:01:24]} 32. Bc3 {[%emt 0:00:20]} (32. Nf3 {was worth a try.} Rb3 33. Rf1) 32... Rb3 {[%emt 0:01:07]} 33. Bd2 {[%emt 0:00:46]} (33. fxg7 $142 Kxg7 34. Qd2 Qg4+ 35. Ng2) 33... Nc4 {[%emt 0:00:28][%csl LRa3,LRd2] Weighted Error Value: White=0.55/Black=0.20 (precise)} 0-1

[Event "Slovakia Open 2022"]
[Site "Bratislava"]
[Date "2022.09.30"]
[Round "2.19"]
[White "Kushko, Dmitriy"]
[Black "Yankelevich, Lev"]
[Result "0-1"]
[ECO "A05"]
[WhiteElo "2302"]
[BlackElo "2484"]
[Annotator "TA"]
[PlyCount "65"]
[EventDate "2022.09.30"]
[EventCountry "SVK"]
[SourceTitle "playchess.com"]
[Source "ChessBase"]
[SourceQuality "1"]
[TimeControl "2700+10"]

{[%evp 14,65,-19,-24,-4,-8,-8,-14,3,4,16,-66,-58,-57,-53,-141,-140,-137,-140,-138,-144,-135,-133,-130,-136,-136,-135,-139,-138,-165,-160,-161,-115,-125,-125,-121,-118,-382,-378,-378,-378,-377,-324,-334,-339,-339,-341,-341,-341,-335,-327,-310,-306,-346]} 1. g3 {[%emt 0:00:07]} d5 {[%emt 0:00:05]} 2. Nf3 {[%emt 0:00:02]} Nf6 {[%emt 0:02:32]} 3. Bg2 {[%emt 0:00:02]} g6 {[%emt 0:00:05]} 4. b3 {[%emt 0:00:02][%cal Bb2b3,Bb3b4][%mdl 32]} Bg7 {[%emt 0:00:03]} 5. Bb2 {[%emt 0:00:02]} O-O {[%emt 0:00:04]} 6. O-O {[%emt 0:00:03]} c5 {[%emt 0:00:41]} 7. c4 {[%emt 0:00:03]} d4 {[%emt 0:00:26]} 8. b4 {[%emt 0:00:02]} Nc6 {[%emt 0:00:17] A05: Réti Opening: 1 Nf3 Nf6.} 9. b5 {[%emt 0:00:08]} Na5 {[%emt 0:01:31]} 10. d3 {[%emt 0:00:03] [#]} Ng4 $146 {[%emt 0:00:36] The position is equal.} ({Predecessor:} 10... Re8 11. Re1 e5 12. Ng5 e4 13. Nd2 e3 14. fxe3 Ng4 15. Nxf7 Kxf7 16. Bd5+ Be6 17. exd4 Bxd5 18. cxd5 {0-1 (23) Hamitevici,V (2482)-Kamsky,G (2658) Chess.com INT 2022}) 11. Nbd2 {[%emt 0:00:27]} a6 {[%emt 0:04:54]} 12. Ba3 {[%emt 0:08:47]} (12. a4 $11) 12... axb5 $15 {[%emt 0:02:49]} 13. cxb5 {[%emt 0:01:16]} b6 {[%emt 0:00:28]} 14. Nxd4 {[%emt 0:13:20]} Qxd4 $17 {[%emt 0:00:14]} 15. Bxa8 {[%emt 0:00:05] [#] And now Rc1 would win.} Nxf2 $1 {[%emt 0:00:10][%mdl 512] Black has more active pieces. The white rooks are badly placed.} 16. Rxf2 {[%emt 0:02:22] Black must now prevent Rb1.} Qxa1 {[%emt 0:00:06]} 17. Qxa1 {[%emt 0:00:04]} Bxa1 {[%emt 0:00:02]} 18. Rf1 {[%emt 0:01:03]} Bd4+ {[%emt 0:00:55]} 19. Kg2 {[%emt 0:00:24]} Be6 {[%emt 0:01:02][%csl LRa2,LRa8] Against Bd5} 20. Bf3 {[%emt 0:01:47]} Bxa2 {[%emt 0:00:05]} 21. h4 {[%emt 0:01:45]} Rd8 {[%emt 0:00:25]} 22. h5 {[%emt 0:00:22]} Bd5 {[%emt 0:01:11]} ({Better is} 22... f6 $19 23. Bc1 Be6) 23. Bxd5 {[%emt 0:00:36]} Rxd5 {[%emt 0:00:02]} 24. hxg6 {[%emt 0:00:02]} hxg6 {[%emt 0:00:04]} 25. Nc4 $2 {[%emt 0:05:45][%mdl 8192] [#] This costs White the game.} (25. Bc1 $17 {keeps fighting.}) 25... Nxc4 $19 {[%emt 0:00:08]} 26. dxc4 {[%emt 0:00:02][%mdl 4096] Endgame KRB-KRB} Re5 {[%emt 0:00:02]} 27. Re1 {[%emt 0:03:57]} Re3 {[%emt 0:00:16]} 28. Bc1 {[%emt 0:00:04] Black has a decisive advantage.} Rc3 {[%emt 0:00:02]} 29. Bf4 {[%emt 0:00:03]} Rxc4 {[%emt 0:00:41]} 30. Bc7 {[%emt 0:00:05]} Rb4 {[%emt 0:00:05]} 31. Bxb6 {[%emt 0:00:03]} Rxb5 {[%emt 0:00:02]} 32. Bc7 {[%emt 0:00:26]} c4 {[%emt 0:00:54]} 33. e3 {[%emt 0:00:11] Weighted Error Value: White=0.25 (precise) /Black=0.08 (flawless)} 0-1

[Event "Slovakia Open 2022"]
[Site "Bratislava"]
[Date "2022.09.30"]
[Round "2.20"]
[White "Balint, Peter"]
[Black "Meszaros, Casey Ryan"]
[Result "1-0"]
[ECO "C76"]
[WhiteElo "2235"]
[BlackElo "1925"]
[Annotator "TA"]
[PlyCount "88"]
[EventDate "2022.09.30"]
[EventCountry "SVK"]
[SourceTitle "playchess.com"]
[Source "ChessBase"]
[SourceQuality "1"]
[TimeControl "2700+10"]

{[%evp 15,88,35,32,0,34,26,21,16,43,39,67,64,93,80,83,45,167,18,162,97,155,127,198,194,187,194,375,391,619,596,602,600,673,655,1341,1290,1247,1230,1447,1468,1519,1491,1565,1537,1556,1443,2347,2252,2637,2579,2418,2348,29976,2464,1959,1911,29978,29979,29979,29980,29980,12837,29981,29982,29982,29982,29982,29983,29983,29984,29984,29985,29985,29986,29986]} 1. e4 {[%emt 0:00:08]} e5 {[%emt 0:01:33]} 2. Nf3 {[%emt 0:00:04]} Nc6 {[%emt 0:00:02]} 3. Bb5 {[%emt 0:00:02]} a6 {[%emt 0:00:03]} 4. Ba4 {[%emt 0:00:02]} d6 {[%emt 0:00:01]} 5. c3 {[%emt 0:00:05]} Bd7 {[%emt 0:00:01]} 6. O-O {[%emt 0:00:03]} g6 {[%emt 0:00:05]} 7. d4 {[%emt 0:00:10]} Bg7 {[%emt 0:00:18]} 8. d5 {[%emt 0:01:00]} Nce7 {[%emt 0:00:08]} 9. Bc2 {[%emt 0:00:41] C76: Ruy Lopez: Deferred Steinitz: 5 c3 Bd7 6 d4 g6.} h6 {[%emt 0:00:07]} 10. Nbd2 {[%emt 0:01:00]} f5 {[%emt 0:00:56]} 11. exf5 {[%emt 0:00:48] [#] The position is equal.} Bxf5 $146 {[%emt 0:00:24]} ({Predecessor:} 11... gxf5 12. Nb3 Nf6 13. c4 O-O 14. Bd2 Qe8 15. Bc3 Qh5 16. h3 b5 17. Bxe5 dxe5 18. Nxe5 Qxd1 19. Raxd1 bxc4 20. Nxc4 Nexd5 {0-1 (52) Bajgildin,A-Zyrichin,A Sochi 2007}) 12. Nh4 {[%emt 0:01:27]} Qd7 {[%emt 0:01:47]} 13. Nxf5 {[%emt 0:00:24]} Nxf5 {[%emt 0:00:53]} 14. Ne4 {[%emt 0:01:00]} Nge7 {[%emt 0:01:14]} 15. Qg4 {[%emt 0:01:40][%cal Oc2a4] White is more active.} O-O-O {[%emt 0:01:30] [#] White leaves nothing to chance now.} (15... c6 $14) 16. Qd1 {[%emt 0:02:45]} (16. Ba4 $1 $18 {[%cal Ra4d7][%mdl 512]} b5 17. Bb3) 16... g5 {[%emt 0:03:22]} (16... c6 $11 {and Black has nothing to worry.}) 17. a4 {[%emt 0:00:10]} (17. Ba4 $18 c6 18. dxc6 Nxc6 19. Be3) 17... Ng6 {[%emt 0:00:11]} (17... c6 $142) 18. a5 {[%emt 0:02:09]} Nf4 {[%emt 0:00:08]} (18... Kb8 $16) 19. g3 $18 {[%emt 0:02:53]} Nh3+ {[%emt 0:01:09]} 20. Kg2 {[%emt 0:00:46] Strongly threatening Ba4.} h5 $2 {[%emt 0:01:36]} (20... Nf4+ 21. gxf4 Nh4+ 22. Kh1 Qh3) 21. Ba4 {[%emt 0:00:23]} c6 {[%emt 0:02:33]} (21... Qf7 $142 22. Kxh3 g4+ 23. Kg2 Qg6) 22. dxc6 {[%emt 0:00:33]} bxc6 {[%emt 0:00:05]} 23. Qe2 {[%emt 0:00:46]} Kb7 {[%emt 0:00:18]} 24. Rd1 {[%emt 0:00:50]} Qe6 {[%emt 0:00:34] [#]} 25. Rxd6 $3 {[%emt 0:00:15][%mdl 512]} Qxd6 {[%emt 0:01:52]} 26. Nxd6+ {[%emt 0:00:04]} Rxd6 {[%emt 0:00:02]} 27. Kxh3 {[%emt 0:00:07]} g4+ {[%emt 0:00:03]} 28. Kg2 {[%emt 0:00:02]} h4 {[%emt 0:00:06]} 29. Ra3 {[%emt 0:00:48][%cal Ba1a3,Ba3b3,Bb3b6,Bb6c6][%mdl 32] And now Rb3+ would win.} h3+ {[%emt 0:00:05]} 30. Kg1 {[%emt 0:00:10] Threatens to win with Rb3+.} Rhd8 {[%emt 0:00:06]} 31. Bg5 {[%emt 0:00:05]} R8d7 {[%emt 0:00:11]} 32. Rb3+ {[%emt 0:01:22]} Kc7 {[%emt 0:00:02]} 33. Rb6 {[%emt 0:00:07]} Bh6 {[%emt 0:00:22]} 34. Bxh6 {[%emt 0:00:31]} (34. Qxe5 $142 Bxg5 35. Rxc6+ Kb8 36. Rb6+ Ka7 37. Rxd6 Rxd6 38. Qxf5 Rd2 39. Qc5+ Kb8 40. Qe5+ Kc8 41. Qxg5) 34... Nxh6 {[%emt 0:00:02]} 35. Qxe5 {[%emt 0:00:53] White threatens Rxc6+ and mate.} Nf7 {[%emt 0:00:03]} 36. Rxc6+ {[%emt 0:00:22]} Kd8 {[%emt 0:00:17] [#]} 37. Rxd6 $1 {[%emt 0:00:35]} Nxe5 {[%emt 0:00:07]} 38. Rxd7+ {[%emt 0:00:02]} Nxd7 {[%emt 0:00:01]} 39. Bxd7 {[%emt 0:00:02] White mates.} Kxd7 {[%emt 0:00:01] KP-KP} 40. Kf1 {[%emt 0:00:11]} Kc6 {[%emt 0:00:01]} 41. Ke2 {[%emt 0:00:02]} Kb5 {[%emt 0:00:10]} 42. b4 {[%emt 0:00:02]} Kc4 {[%emt 0:00:00]} 43. Kd2 {[%emt 0:00:01]} Kd5 {[%emt 0:00:00]} 44. Kd3 {[%emt 0:00:02]} Ke5 {[%emt 0:00:03] Weighted Error Value: White=0.24 (precise) /Black=0.79} 1-0

[Event "Slovakia Open 2022"]
[Site "Bratislava"]
[Date "2022.09.30"]
[Round "2.21"]
[White "Roshka, Yevgeniy"]
[Black "Park, Seonjae"]
[Result "1-0"]
[ECO "E04"]
[WhiteElo "2497"]
[BlackElo "1704"]
[Annotator "TA"]
[PlyCount "51"]
[EventDate "2022.09.30"]
[EventCountry "SVK"]
[SourceTitle "playchess.com"]
[Source "ChessBase"]
[SourceQuality "1"]
[TimeControl "2700+10"]

{[%evp 16,51,17,18,92,88,145,79,81,76,82,73,72,70,73,37,35,26,41,41,45,17,140,147,149,142,245,239,223,234,400,387,450,449,29996,29997,29997,29998]} 1. d4 {[%emt 0:00:04]} Nf6 {[%emt 0:00:02]} 2. c4 {[%emt 0:00:02]} e6 {[%emt 0:00:01]} 3. g3 {[%emt 0:00:09]} d5 {[%emt 0:00:14]} 4. Bg2 {[%emt 0:00:04]} dxc4 {[%emt 0:00:11]} 5. Nf3 {[%emt 0:00:03]} c5 {[%emt 0:00:38]} 6. O-O {[%emt 0:00:04]} Nc6 {[%emt 0:00:26]} 7. dxc5 {[%emt 0:00:07]} Qxd1 {[%emt 0:01:45]} 8. Rxd1 {[%emt 0:00:03]} Bxc5 {[%emt 0:00:13]} 9. Nbd2 {[%emt 0:00:03][%cal Bb1d2,Bd2c4,Bc4e5,Be5d3,Bd3c5][%mdl 32]} Nd7 {[%emt 0:04:57] E04: Open Catalan: 5 Nf3.} (9... c3 $11 {remains equal.} 10. bxc3 O-O) 10. Nxc4 $16 {[%emt 0:00:17]} Ke7 {[%emt 0:00:17] [#]} (10... Nb6 $142) 11. a3 $146 {[%emt 0:01:28]} ({Better is} 11. Ng5) ({Predecessor:} 11. b3 f6 12. Bb2 b5 13. Ncd2 Rb8 14. Rac1 Nd8 15. Ne4 Bb4 16. a3 Ba5 17. b4 {½-½ (30) Stuehmeier,C (1568)-Rafiee,K (2027) Bad Zwesten 2005}) 11... Nb6 {[%emt 0:02:23] White is better.} 12. Nfe5 {[%emt 0:01:11]} Nxe5 {[%emt 0:00:27]} 13. Nxe5 {[%emt 0:00:04] [#] Black must now prevent b4.} f6 {[%emt 0:01:30]} 14. Nd3 {[%emt 0:00:04]} Bd6 {[%emt 0:00:25]} 15. Be3 {[%emt 0:00:23]} Nc4 {[%emt 0:00:29]} 16. Bc5 $36 {[%emt 0:00:28][%mdl 2048] White fights for an advantage.} Bxc5 {[%emt 0:01:59]} 17. Nxc5 {[%emt 0:00:03]} Nd6 {[%emt 0:00:37]} 18. Rac1 {[%emt 0:01:14][%cal Oc5b7] And now Nxb7! would win.} Rb8 {[%emt 0:01:24] [#]} (18... Rd8 $1 $11 {keeps the balance.}) 19. Nxb7 $1 {[%emt 0:05:55][%mdl 512] White has more active pieces. The black rooks are badly placed.} Nxb7 {[%emt 0:04:22]} (19... Rxb7 $2 20. Bxb7 Rd8 21. Bg2 $18) 20. Rc7+ {[%emt 0:00:50]} Kf8 {[%emt 0:01:35]} (20... Ke8 $16 {was called for.}) 21. Rdc1 {[%emt 0:00:41]} Nd6 {[%emt 0:04:41]} 22. R1c6 {[%emt 0:00:03][%mdl 64] Deflection} Ne8 {[%emt 0:00:02]} (22... Nb5 {keeps fighting.}) 23. Rxc8 $18 {[%emt 0:00:03]} Rxb2 {[%emt 0:01:20]} 24. R6c7 {[%emt 0:01:10] Threatening mate with Bc6.} Rxe2 {[%emt 0:00:47]} (24... Rb1+ $18 25. Bf1 a6 26. Rxe8+ Kxe8 27. Rc8+ Kf7 28. Rxh8 Ra1 29. Rxh7 Kg8) 25. Bc6 {[%emt 0:00:03][%csl Gc6][%cal Rc8e8]} Re1+ {[%emt 0:00:31]} 26. Kg2 {[%emt 0:00:02] Weighted Error Value: White=0.09 (flawless) /Black=0.75} 1-0

[Event "Slovakia Open 2022"]
[Site "Bratislava"]
[Date "2022.09.30"]
[Round "2.22"]
[White "Dubnicka, Ferdinand"]
[Black "Merva, Frantisek"]
[Result "0-1"]
[ECO "B52"]
[WhiteElo "1494"]
[BlackElo "1981"]
[Annotator "TA"]
[PlyCount "68"]
[EventDate "2022.09.30"]
[EventCountry "SVK"]
[SourceTitle "playchess.com"]
[Source "ChessBase"]
[SourceQuality "1"]
[TimeControl "2700+10"]

{[%evp 10,67,2,6,13,9,16,18,39,0,16,-4,0,-14,-3,-47,-38,-43,-41,-38,-31,-8,-25,-31,-38,-64,-24,-22,-22,-51,-62,-118,-120,-114,-122,-122,-114,-118,-73,-89,-33,-137,-158,-564,-293,-285,-256,-289,-177,-358,-206,-1330,-1315,-1278,-1278,-29986,-29987,-29987,-29988,-29988]} 1. e4 {[%emt 0:00:06]} c5 {[%emt 0:00:04]} 2. Nf3 {[%emt 0:00:02]} d6 {[%emt 0:00:08]} 3. Nc3 {[%emt 0:00:04]} Nf6 {[%emt 0:00:19]} 4. Bb5+ {[%emt 0:00:04]} Bd7 {[%emt 0:00:06]} 5. Bxd7+ {[%emt 0:00:03]} Nbxd7 {[%emt 0:00:03]} 6. O-O {[%emt 0:00:03]} g6 {[%emt 0:01:02] B52: Sicilian: Moscow Variation with 3...Bd7.} 7. d3 {[%emt 0:00:02]} Bg7 {[%emt 0:00:10]} 8. Bg5 {[%emt 0:00:03]} h6 {[%emt 0:00:48] The position is equal.} 9. Bh4 {[%emt 0:00:08]} O-O {[%emt 0:01:10]} 10. Re1 {[%emt 0:00:03]} Qb6 {[%emt 0:02:40]} 11. Rb1 {[%emt 0:00:05]} e6 {[%emt 0:01:35]} 12. e5 {[%emt 0:00:14]} dxe5 {[%emt 0:03:07]} 13. Nxe5 {[%emt 0:00:03]} Nxe5 {[%emt 0:00:13]} 14. Rxe5 {[%emt 0:00:01]} Qb4 {[%emt 0:06:50]} 15. Bxf6 {[%emt 0:00:49]} Bxf6 {[%emt 0:00:07]} 16. a3 {[%emt 0:00:11]} Qa5 {[%emt 0:01:19]} 17. Re2 {[%emt 0:01:04]} Rad8 {[%emt 0:02:36]} 18. Ne4 {[%emt 0:00:06]} Bg7 {[%emt 0:00:08]} 19. c3 {[%emt 0:00:09]} c4 {[%emt 0:04:57]} 20. d4 {[%emt 0:00:01]} (20. Rd2 $15) 20... e5 $17 {[%emt 0:00:07][%cal Re5d4]} 21. Rd2 {[%emt 0:00:38]} exd4 {[%emt 0:00:07]} 22. cxd4 {[%emt 0:00:03]} Rfe8 {[%emt 0:00:43]} 23. Nc3 {[%emt 0:00:12]} Qf5 {[%emt 0:00:39][%cal Od8d4] Threatens to win with ...Rxd4!} 24. g3 {[%emt 0:01:00]} h5 {[%emt 0:00:45] Black is much more active. The white rooks are badly placed.} (24... b5 $17) 25. h4 {[%emt 0:00:24]} (25. Qa4 $15) 25... Bh6 {[%emt 0:01:30]} 26. f4 $2 {[%emt 0:00:35] Now White is beyond hope.} (26. Rc2 $17) 26... Bg7 {[%emt 0:02:11]} 27. Kh2 {[%emt 0:00:10]} Re3 {[%emt 0:00:52]} 28. Qg1 {[%emt 0:00:06]} Rde8 {[%emt 0:00:19][%cal Og7d4] aiming for ...Bxd4!} ({Less strong is} 28... Bxd4 29. Rxd4 $1 {[%mdl 512]} Qc2+ 30. Kh1 Rxd4 31. Qxe3 $16) 29. Rbd1 $2 {[%emt 0:00:24]} (29. Qf1 {was worth a try.}) 29... b5 {[%emt 0:00:30]} (29... Bf6 $142 {[%cal Of6h4] Strongly threatening ...Bxh4!} 30. Rg2 {[#]} Bxh4 $1 {[%mdl 512]}) 30. d5 $2 {[%emt 0:00:04]} (30. Qg2) 30... Bxc3 $19 {[%emt 0:00:20]} 31. bxc3 {[%emt 0:00:10]} Re2+ {[%emt 0:00:11]} 32. Rxe2 {[%emt 0:00:18]} Rxe2+ {[%emt 0:00:07]} 33. Qg2 {[%emt 0:00:02]} Rxg2+ {[%emt 0:00:10]} 34. Kxg2 {[%emt 0:00:02] [#]  Weighted Error Value: White=0.97/Black=0.30} {Predecessor:} Qc2+ $146 0-1

[Event "Slovakia Open 2022"]
[Site "Bratislava"]
[Date "2022.09.30"]
[Round "2.23"]
[White "Mizicka, Matus"]
[Black "Malaschitz, Teodor"]
[Result "1-0"]
[ECO "D00"]
[WhiteElo "1975"]
[BlackElo "1448"]
[Annotator "TA"]
[PlyCount "50"]
[EventDate "2022.09.30"]
[EventCountry "SVK"]
[SourceTitle "playchess.com"]
[Source "ChessBase"]
[SourceQuality "1"]
[TimeControl "2700+10"]

{[%evp 9,50,-31,-35,-28,5,-28,-33,-30,-18,-7,7,6,40,40,68,58,68,31,68,32,61,0,170,195,250,151,557,560,614,616,639,607,842,784,1150,907,1758,1752,1626,1680,2238,2225,2024]} 1. d4 {[%emt 0:00:03]} d5 {[%emt 0:00:01]} 2. Nc3 {[%emt 0:00:07]} e6 {[%emt 0:00:02]} 3. Bf4 {[%emt 0:00:13]} a6 {[%emt 0:00:09]} 4. a4 {[%emt 0:00:15]} c5 {[%emt 0:00:09]} 5. e3 {[%emt 0:00:04]} Nc6 {[%emt 0:00:09]} 6. Nf3 {[%emt 0:00:02] [#] D00: 1 d4 d5: Unusual lines.} Qb6 $146 {[%emt 0:00:27]} ({Predecessor:} 6... Nf6 7. Be2 Bd6 8. Bxd6 Qxd6 9. dxc5 Qxc5 10. Nd4 O-O 11. O-O e5 12. Nb3 Qd6 {1-0 (39) Nadeev,S (2274)-Kett,T (2136) Chess.com INT 2022}) 7. Rb1 {[%emt 0:00:21]} (7. a5 {with more complications.} Qxb2 8. Na4 Qb4+ 9. Qd2) 7... Bd7 {[%emt 0:00:30]} 8. Be2 {[%emt 0:00:12] Black is slightly better.} cxd4 {[%emt 0:00:05]} 9. exd4 {[%emt 0:00:02]} Bb4 {[%emt 0:00:45]} 10. O-O {[%emt 0:00:05]} Nd8 {[%emt 0:00:33]} 11. Ne5 {[%emt 0:00:31]} Nc6 {[%emt 0:01:23]} 12. Nxd7 {[%emt 0:05:16] White is more active.} Kxd7 {[%emt 0:00:06]} 13. Bg4 {[%emt 0:00:54] A strong pair of Bishops.} Nge7 {[%emt 0:00:38]} 14. Be3 {[%emt 0:00:37]} Qa5 {[%emt 0:00:13]} 15. Re1 {[%emt 0:06:10]} (15. Na2 $14) 15... Bxc3 $2 {[%emt 0:00:29] [#]} (15... Rag8 $11 {and Black has nothing to worry.}) 16. bxc3 $18 {[%emt 0:00:01]} Ra7 {[%emt 0:00:28]} (16... h5 $142) 17. Qd2 {[%emt 0:01:51]} Qxa4 $2 {[%emt 0:00:46] Loses the game.} (17... h5 $16 {is more resistant.} 18. Be2 Nf5) 18. Ra1 {[%emt 0:00:10] White is clearly winning.} Qxa1 {[%emt 0:01:29]} 19. Rxa1 {[%emt 0:00:01]} h5 {[%emt 0:00:50]} 20. Bh3 {[%emt 0:00:06]} f6 {[%emt 0:00:22]} 21. c4 {[%emt 0:00:06] [#] Strongly threatening cxd5.} g5 {[%emt 0:00:14]} 22. g3 {[%emt 0:00:46]} Kd6 {[%emt 0:02:05]} 23. cxd5 {[%emt 0:00:21]} Nxd5 {[%emt 0:00:17]} 24. c4 {[%emt 0:00:07]} Nc7 {[%emt 0:00:38]} 25. d5 {[%emt 0:00:04]} exd5 {[%emt 0:00:34] Weighted Error Value: White=0.27 (precise) /Black=0.79} 1-0

[Event "Slovakia Open 2022"]
[Site "Bratislava"]
[Date "2022.09.30"]
[Round "2.24"]
[White "Kostic, Ivan"]
[Black "Nytra, Ondrej"]
[Result "0-1"]
[ECO "D45"]
[WhiteElo "1716"]
[BlackElo "2233"]
[Annotator "TA"]
[PlyCount "52"]
[EventDate "2022.09.30"]
[EventCountry "SVK"]
[SourceTitle "playchess.com"]
[Source "ChessBase"]
[SourceQuality "1"]
[TimeControl "2700+10"]

{[%evp 14,52,-13,-13,69,3,0,-44,-60,-70,-10,-81,-60,-85,-83,-106,-3,-101,-75,-71,-69,-282,-276,-293,-294,-367,-364,-320,-332,-386,-352,-5689,-5602,-29993,-29992,-29992,-3893,-29991,-29989,-29989,-29990]} 1. d4 {[%emt 0:00:04]} d5 {[%emt 0:00:06]} 2. e3 {[%emt 0:00:03]} Nf6 {[%emt 0:00:26]} 3. c4 {[%emt 0:00:03]} e6 {[%emt 0:00:03]} 4. a3 {[%emt 0:00:04]} c6 {[%emt 0:00:02]} 5. Nc3 {[%emt 0:00:08]} Bd6 {[%emt 0:00:24]} 6. Nf3 {[%emt 0:00:12]} O-O {[%emt 0:00:03]} 7. b4 {[%emt 0:00:27]} Nbd7 {[%emt 0:00:15]} 8. Bb2 {[%emt 0:00:06]} e5 {[%emt 0:00:57] D45: Semi-Slav: 5 e3.} (8... h6 $11) 9. dxe5 {[%emt 0:00:54]} (9. cxd5 $14 a5 10. dxc6 bxc6 11. b5) 9... Nxe5 $11 {[%emt 0:00:03]} 10. Nxe5 {[%emt 0:00:12]} Bxe5 {[%emt 0:00:04] [#] Black is slightly better.} 11. Qc2 $146 {[%emt 0:00:09]} ({Predecessor:} 11. cxd5 Nxd5 12. Qd2 Nxc3 13. Bxc3 Qxd2+ 14. Kxd2 Rd8+ 15. Kc2 Bf5+ 16. Kb3 Bxc3 17. Kxc3 {1-0 (40) Krottki,M-O'Brien,J Dos Hermanas 2004}) 11... Ng4 {[%emt 0:02:15]} (11... a5 $15 12. b5 Re8) 12. h3 {[%emt 0:00:51]} (12. cxd5 $11 cxd5 13. h3) 12... Qh4 $17 {[%emt 0:02:43]} 13. Nd1 {[%emt 0:02:00]} Re8 {[%emt 0:01:08][%cal Og4e3] [#] ...Nxe3! is the strong threat. Black is more active.} 14. Bxe5 {[%emt 0:00:31]} Rxe5 {[%emt 0:00:03]} ({Black should try} 14... Nxe5 $17 15. cxd5 cxd5) 15. Be2 {[%emt 0:05:40]} (15. g3 $11 {remains equal.} Qh6 16. Qc3) 15... Nxe3 {[%emt 0:00:32]} 16. Nxe3 {[%emt 0:00:27]} Rxe3 {[%emt 0:00:03]} 17. g3 $2 {[%emt 0:01:33] [#] White does not recover from this.} (17. cxd5 $15 Bg4 18. O-O Rxe2 19. Qc4) 17... Qf6 $1 $19 {[%emt 0:00:22]} 18. O-O {[%emt 0:01:41]} Rc3 {[%emt 0:00:55]} 19. Qa2 {[%emt 0:00:46]} Bxh3 {[%emt 0:00:27]} 20. Rfc1 {[%emt 0:00:15]} d4 {[%emt 0:00:32][%cal Bd5d4,Bd4d3][%mdl 32] White must now prevent ...d3.} 21. Bf1 {[%emt 0:00:45]} Bxf1 {[%emt 0:00:18]} 22. Kxf1 {[%emt 0:00:31]} (22. Rxf1 d3 23. Rae1) 22... Rxg3 {[%emt 0:00:08] ( -> ...Qf3)} 23. Rc2 {[%emt 0:00:35]} d3 {[%emt 0:00:11]} 24. Rd2 {[%emt 0:00:11]} Rh3 {[%emt 0:00:05]} (24... Qf3 $142 25. Rxd3 Qg2+ 26. Ke2 Re8+ 27. Kd2 Rxd3+ 28. Kxd3 Qf3+ 29. Kd2 Re2+ 30. Kd1 Rxa2+ 31. Ke1 Qh1#) 25. f4 {[%emt 0:01:24]} Rh1+ {[%emt 0:00:19]} 26. Kg2 {[%emt 0:00:16]} Rxa1 {[%emt 0:00:07] Weighted Error Value: White=1.10/Black=0.47} 0-1